[Event "*** Titled Tuesday Blitz"]
[Site "Chess.com"]
[Date "2018.07.03"]
[Round "4"]
[White "Rickstereo"]
[Black "DiamondCrusher22"]
[Result "1-0"]
[WhiteElo "2173"]
[BlackElo "1963"]
[TimeControl "180+2"]
[EndTime "13:46:57 PDT"]
[Termination "Rickstereo won by resignation"]

1. c4 {[%clk 0:03:01.9]} 1... c6 {[%clk 0:03:00.8]} 2. Nc3 {[%clk 0:03:00.6]}
2... Nf6 {[%clk 0:02:59.9]} 3. e3 {[%clk 0:02:49.9]} 3... d5 {[%clk 0:02:56.5]}
4. b3 {[%clk 0:02:48.3]} 4... e5 {[%clk 0:02:54.9]} 5. cxd5 {[%clk 0:02:43.7]}
5... cxd5 {[%clk 0:02:55.2]} 6. d4 {[%clk 0:02:43.7]} 6... Bb4 {[%clk
0:02:54.9]} 7. Bd2 {[%clk 0:02:41.4]} 7... exd4 {[%clk 0:02:52.9]} 8. exd4
{[%clk 0:02:41.6]} 8... O-O {[%clk 0:02:53.3]} 9. Bd3 {[%clk 0:02:37.3]} 9...
Re8+ {[%clk 0:02:53.9]} 10. Nge2 {[%clk 0:02:38]} 10... Qa5 {[%clk 0:02:31]} 11.
O-O {[%clk 0:02:30.1]} 11... Rxe2 {[%clk 0:02:18.3]} 12. Bxe2 {[%clk 0:02:24]}
12... Bxc3 {[%clk 0:02:17.3]} 13. Bxc3 {[%clk 0:02:24.7]} 13... Qxc3 {[%clk
0:02:16]} 14. Rc1 {[%clk 0:02:20.2]} 14... Ne4 {[%clk 0:02:00.7]} 15. Bf3 {[%clk
0:02:08.2]} 15... Na6 {[%clk 0:01:37.6]} 16. Rxc3 {[%clk 0:02:06.9]} 16... Nxc3
{[%clk 0:01:38.4]} 17. Qe1 {[%clk 0:02:04.3]} 17... Ne4 {[%clk 0:01:30]} 18.
Bxe4 {[%clk 0:02:03.1]} 18... dxe4 {[%clk 0:01:31.1]} 19. Qxe4 {[%clk
0:02:04.6]} 19... Nc7 {[%clk 0:01:25.5]} 20. Rc1 {[%clk 0:02:03.5]} 20... Ne6
{[%clk 0:01:25.3]} 21. d5 {[%clk 0:02:02.8]} 21... Nf8 {[%clk 0:01:23.5]} 22.
Qe8 {[%clk 0:01:58.9]} 1-0

[Event "*** Titled Tuesday Blitz"]
[Site "Chess.com"]
[Date "2018.07.03"]
[Round "4"]
[White "Paralinch"]
[Black "Aleksey_Sorokin"]
[Result "1/2-1/2"]
[WhiteElo "2794"]
[BlackElo "2776"]
[TimeControl "180+2"]
[EndTime "13:47:25 PDT"]
[Termination "Game drawn by repetition"]

1. e4 {[%clk 0:03:01.9]} 1... c5 {[%clk 0:03:00.2]} 2. Nf3 {[%clk 0:03:02.8]}
2... d6 {[%clk 0:03:01.5]} 3. d4 {[%clk 0:03:04.1]} 3... cxd4 {[%clk 0:03:03.4]}
4. Nxd4 {[%clk 0:03:06]} 4... Nf6 {[%clk 0:03:04.5]} 5. Nc3 {[%clk 0:03:07.5]}
5... a6 {[%clk 0:03:05.8]} 6. Be2 {[%clk 0:03:08.8]} 6... e5 {[%clk 0:03:05.8]}
7. Nf3 {[%clk 0:03:10.1]} 7... Be7 {[%clk 0:03:05.8]} 8. Bg5 {[%clk 0:03:10.5]}
8... Be6 {[%clk 0:03:05.6]} 9. Bxf6 {[%clk 0:03:07]} 9... Bxf6 {[%clk
0:03:06.1]} 10. O-O {[%clk 0:03:06.4]} 10... O-O {[%clk 0:03:04.7]} 11. Nd5
{[%clk 0:03:07.5]} 11... Nd7 {[%clk 0:03:00.5]} 12. Re1 {[%clk 0:02:42.8]} 12...
Rc8 {[%clk 0:03:00.8]} 13. c3 {[%clk 0:02:43.7]} 13... Be7 {[%clk 0:02:55.5]}
14. Qd2 {[%clk 0:02:37.8]} 14... Nf6 {[%clk 0:02:55.9]} 15. Nxf6+ {[%clk
0:02:37.2]} 15... Bxf6 {[%clk 0:02:56.7]} 16. Bd1 {[%clk 0:02:37.1]} 16... Qb6
{[%clk 0:02:54.8]} 17. Bb3 {[%clk 0:02:11.1]} 17... Bxb3 {[%clk 0:02:50.4]} 18.
axb3 {[%clk 0:02:13]} 18... Qxb3 {[%clk 0:02:50.1]} 19. Ra3 {[%clk 0:02:10.3]}
19... Qb6 {[%clk 0:02:49.1]} 20. Rd1 {[%clk 0:02:08.3]} 20... Rfd8 {[%clk
0:02:49.8]} 21. g3 {[%clk 0:02:01.9]} 21... Kf8 {[%clk 0:02:42.7]} 22. Ne1
{[%clk 0:01:56.9]} 22... Qc6 {[%clk 0:02:41.3]} 23. Qd3 {[%clk 0:01:52.4]} 23...
Qc4 {[%clk 0:02:36]} 24. Nc2 {[%clk 0:01:47.3]} 24... Qxd3 {[%clk 0:02:32.9]}
25. Rxd3 {[%clk 0:01:49.2]} 25... Be7 {[%clk 0:02:28.1]} 26. Ra1 {[%clk
0:01:43.3]} 26... Rc5 {[%clk 0:02:08.3]} 27. Ne3 {[%clk 0:01:41.7]} 27... g6
{[%clk 0:02:07]} 28. Nd5 {[%clk 0:01:42.5]} 28... Rdc8 {[%clk 0:02:06.2]} 29.
Rad1 {[%clk 0:01:42.1]} 29... Bd8 {[%clk 0:02:01.5]} 30. Ne3 {[%clk 0:01:40.4]}
30... Be7 {[%clk 0:02:01.4]} 31. Nd5 {[%clk 0:01:41.6]} 31... Bd8 {[%clk
0:01:58.9]} 32. Ne3 {[%clk 0:01:41.8]} 32... Be7 {[%clk 0:01:59.3]} 33. Nd5
{[%clk 0:01:43.2]} 33... Bd8 {[%clk 0:02:00.2]} 34. Ne3 {[%clk 0:01:43.9]}
1/2-1/2

[Event "*** Titled Tuesday Blitz"]
[Site "Chess.com"]
[Date "2018.07.03"]
[Round "4"]
[White "Joel1285"]
[Black "chesstatour"]
[Result "0-1"]
[WhiteElo "1727"]
[BlackElo "2037"]
[TimeControl "180+2"]
[EndTime "13:47:26 PDT"]
[Termination "chesstatour won by resignation"]

1. d4 {[%clk 0:03:01.9]} 1... f5 {[%clk 0:02:54.7]} 2. g3 {[%clk 0:02:59.9]}
2... g6 {[%clk 0:02:55]} 3. Bg2 {[%clk 0:03:00.9]} 3... Nf6 {[%clk 0:02:56.3]}
4. Bg5 {[%clk 0:03:01.5]} 4... Bg7 {[%clk 0:02:57.4]} 5. Nf3 {[%clk 0:03:00.9]}
5... O-O {[%clk 0:02:57.4]} 6. O-O {[%clk 0:03:00.7]} 6... d6 {[%clk 0:02:58.4]}
7. Bxf6 {[%clk 0:02:58.6]} 7... Bxf6 {[%clk 0:02:58.7]} 8. c3 {[%clk 0:03:00.4]}
8... e5 {[%clk 0:02:56.6]} 9. dxe5 {[%clk 0:03:01.3]} 9... dxe5 {[%clk
0:02:57.5]} 10. Qxd8 {[%clk 0:03:02]} 10... Rxd8 {[%clk 0:02:59.4]} 11. e3
{[%clk 0:02:36.4]} 11... c5 {[%clk 0:02:48.8]} 12. Na3 {[%clk 0:02:18.3]} 12...
e4 {[%clk 0:02:44.5]} 13. Ne1 {[%clk 0:02:19.2]} 13... Be6 {[%clk 0:02:06.5]}
14. Nec2 {[%clk 0:02:16.2]} 14... Nc6 {[%clk 0:01:57.8]} 15. Rfd1 {[%clk
0:02:16.1]} 15... Ne5 {[%clk 0:01:35.4]} 16. Nb5 {[%clk 0:02:00.1]} 16... Rxd1+
{[%clk 0:01:17.6]} 17. Rxd1 {[%clk 0:01:51.6]} 17... Bxa2 {[%clk 0:01:18.2]} 18.
Bf1 {[%clk 0:01:26]} 18... Bb3 {[%clk 0:01:12.6]} 19. Rd2 {[%clk 0:01:20.1]} 0-1

[Event "*** Titled Tuesday Blitz"]
[Site "Chess.com"]
[Date "2018.07.03"]
[Round "4"]
[White "Morshynska"]
[Black "bugsbunny444"]
[Result "1/2-1/2"]
[WhiteElo "2156"]
[BlackElo "2373"]
[TimeControl "180+2"]
[EndTime "13:47:31 PDT"]
[Termination "Game drawn by agreement"]

1. d4 {[%clk 0:03:01.9]} 1... e6 {[%clk 0:03:00.8]} 2. c4 {[%clk 0:02:58.3]}
2... b6 {[%clk 0:03:02]} 3. Nc3 {[%clk 0:02:43.7]} 3... Bb7 {[%clk 0:03:01.3]}
4. Nf3 {[%clk 0:02:42.3]} 4... f5 {[%clk 0:03:01]} 5. g3 {[%clk 0:02:36.2]} 5...
Nf6 {[%clk 0:03:01.7]} 6. Bg2 {[%clk 0:02:36.8]} 6... Bb4 {[%clk 0:03:03.3]} 7.
Bd2 {[%clk 0:02:35.6]} 7... O-O {[%clk 0:03:02.1]} 8. O-O {[%clk 0:02:35.8]}
8... Qe7 {[%clk 0:02:57.4]} 9. a3 {[%clk 0:02:26.5]} 9... Bxc3 {[%clk
0:02:57.9]} 10. Bxc3 {[%clk 0:02:28.4]} 10... d6 {[%clk 0:02:53.9]} 11. b4
{[%clk 0:02:19.1]} 11... Nbd7 {[%clk 0:02:48.4]} 12. Nd2 {[%clk 0:02:01]} 12...
Bxg2 {[%clk 0:02:47.7]} 13. Kxg2 {[%clk 0:02:02.9]} 13... c6 {[%clk 0:02:35.2]}
14. Qc2 {[%clk 0:02:01.8]} 14... d5 {[%clk 0:02:35.8]} 15. f3 {[%clk 0:01:54.5]}
15... b5 {[%clk 0:02:16.9]} 16. cxb5 {[%clk 0:01:42.5]} 16... cxb5 {[%clk
0:02:16.2]} 17. Qd3 {[%clk 0:01:43.8]} 17... a6 {[%clk 0:01:52.1]} 18. a4 {[%clk
0:01:43.8]} 1/2-1/2

[Event "*** Titled Tuesday Blitz"]
[Site "Chess.com"]
[Date "2018.07.03"]
[Round "4"]
[White "cool4chess"]
[Black "Spring199"]
[Result "0-1"]
[WhiteElo "2042"]
[BlackElo "2188"]
[TimeControl "180+2"]
[EndTime "13:47:45 PDT"]
[Termination "Spring199 won by resignation"]

1. e4 {[%clk 0:03:01.9]} 1... e5 {[%clk 0:03:00.5]} 2. Nf3 {[%clk 0:03:01.7]}
2... Nc6 {[%clk 0:03:01.9]} 3. Bb5 {[%clk 0:02:58.9]} 3... a6 {[%clk 0:03:02.7]}
4. Ba4 {[%clk 0:02:59.3]} 4... Nf6 {[%clk 0:03:04.1]} 5. O-O {[%clk 0:02:59.4]}
5... Be7 {[%clk 0:03:05.5]} 6. Re1 {[%clk 0:02:58.5]} 6... b5 {[%clk 0:03:06.9]}
7. Bb3 {[%clk 0:02:59.9]} 7... d6 {[%clk 0:03:08.2]} 8. c3 {[%clk 0:03:01.4]}
8... O-O {[%clk 0:03:09.4]} 9. d4 {[%clk 0:03:02.9]} 9... exd4 {[%clk
0:03:09.1]} 10. cxd4 {[%clk 0:03:03.5]} 10... Bg4 {[%clk 0:03:10.5]} 11. Be3
{[%clk 0:03:04.4]} 11... Na5 {[%clk 0:03:07.2]} 12. Bc2 {[%clk 0:03:04.9]} 12...
c5 {[%clk 0:03:07.8]} 13. Nbd2 {[%clk 0:03:01.6]} 13... Rc8 {[%clk 0:03:01.8]}
14. h3 {[%clk 0:02:57.6]} 14... Bh5 {[%clk 0:03:00.4]} 15. Qb1 {[%clk
0:02:56.6]} 15... Bg6 {[%clk 0:02:50.9]} 16. Nh4 {[%clk 0:02:55.1]} 16... cxd4
{[%clk 0:02:43.2]} 17. Bxd4 {[%clk 0:02:52.8]} 17... Nh5 {[%clk 0:02:25.1]} 18.
Nxg6 {[%clk 0:02:51.9]} 18... hxg6 {[%clk 0:02:27]} 19. b3 {[%clk 0:02:37.2]}
19... Bf6 {[%clk 0:02:24]} 20. Nf3 {[%clk 0:02:35.5]} 20... Bxd4 {[%clk
0:02:18.6]} 21. Nxd4 {[%clk 0:02:36.7]} 21... Qf6 {[%clk 0:02:20]} 22. Qd1
{[%clk 0:02:35.5]} 22... Nf4 {[%clk 0:02:18.1]} 23. Kh2 {[%clk 0:02:33.2]} 23...
Rc5 {[%clk 0:02:01.9]} 24. Ne2 {[%clk 0:02:22.2]} 24... Rfc8 {[%clk 0:01:53.8]}
25. Rc1 {[%clk 0:02:20.2]} 25... Nxe2 {[%clk 0:01:39.5]} 26. Rxe2 {[%clk
0:02:22]} 26... Nc6 {[%clk 0:01:38.3]} 27. Bb1 {[%clk 0:02:21.3]} 27... Qf4+
{[%clk 0:01:38.3]} 28. g3 {[%clk 0:02:10.8]} 28... Qxc1 {[%clk 0:01:39.6]} 29.
Qxd6 {[%clk 0:02:08.8]} 29... Nb4 {[%clk 0:01:31.6]} 30. a3 {[%clk 0:02:05.1]}
30... Qxb1 {[%clk 0:01:31]} 31. axb4 {[%clk 0:02:05.5]} 31... Rc1 {[%clk
0:01:32.3]} 32. Kg2 {[%clk 0:02:04]} 32... Rg1+ {[%clk 0:01:31.1]} 33. Kf3
{[%clk 0:02:03.7]} 33... Qxb3+ {[%clk 0:01:29.8]} 34. Kf4 {[%clk 0:02:03.6]}
34... Qe6 {[%clk 0:01:27.2]} 35. Qxe6 {[%clk 0:02:01.2]} 35... fxe6 {[%clk
0:01:29.1]} 36. Ra2 {[%clk 0:02:02.3]} 36... Rc6 {[%clk 0:01:29]} 0-1

[Event "*** Titled Tuesday Blitz"]
[Site "Chess.com"]
[Date "2018.07.03"]
[Round "4"]
[White "eljanov"]
[Black "Blitzstream"]
[Result "1-0"]
[WhiteElo "2638"]
[BlackElo "2458"]
[TimeControl "180+2"]
[EndTime "13:48:02 PDT"]
[Termination "eljanov won by resignation"]

1. c4 {[%clk 0:03:01.9]} 1... Nf6 {[%clk 0:03:00.2]} 2. Nc3 {[%clk 0:03:02.3]}
2... g6 {[%clk 0:02:56.7]} 3. g3 {[%clk 0:03:02.4]} 3... Bg7 {[%clk 0:02:57.9]}
4. Bg2 {[%clk 0:03:03.2]} 4... O-O {[%clk 0:02:59.6]} 5. e4 {[%clk 0:03:03.7]}
5... e5 {[%clk 0:02:59.4]} 6. d3 {[%clk 0:03:04.7]} 6... d6 {[%clk 0:03:00.3]}
7. Nge2 {[%clk 0:03:06.3]} 7... Nc6 {[%clk 0:03:01.2]} 8. O-O {[%clk 0:03:07.7]}
8... Be6 {[%clk 0:03:01.7]} 9. Nd5 {[%clk 0:03:03.4]} 9... Bxd5 {[%clk
0:02:58.1]} 10. cxd5 {[%clk 0:03:03.8]} 10... Nd4 {[%clk 0:02:59.7]} 11. Nxd4
{[%clk 0:02:59.9]} 11... exd4 {[%clk 0:03:01.6]} 12. b4 {[%clk 0:02:51.4]} 12...
a5 {[%clk 0:03:00.3]} 13. b5 {[%clk 0:02:50.6]} 13... Nd7 {[%clk 0:03:01.1]} 14.
Bb2 {[%clk 0:02:45.2]} 14... Nc5 {[%clk 0:02:59.4]} 15. Rc1 {[%clk 0:02:45.6]}
15... a4 {[%clk 0:02:52.2]} 16. Rc4 {[%clk 0:02:40.3]} 16... Qd7 {[%clk
0:02:52.9]} 17. Bxd4 {[%clk 0:02:29.5]} 17... Bxd4 {[%clk 0:02:53.4]} 18. Rxd4
{[%clk 0:02:30.7]} 18... Qxb5 {[%clk 0:02:55]} 19. Qc2 {[%clk 0:02:32.1]} 19...
Rfe8 {[%clk 0:02:14.4]} 20. Rb1 {[%clk 0:02:31.3]} 20... Qa6 {[%clk 0:02:15.3]}
21. Rc4 {[%clk 0:02:22.5]} 21... b5 {[%clk 0:02:07]} 22. Rcb4 {[%clk 0:02:23]}
22... Rab8 {[%clk 0:02:06.2]} 23. d4 {[%clk 0:02:21.4]} 23... Nd7 {[%clk
0:02:00.9]} 24. Bf1 {[%clk 0:02:18.7]} 24... Qa7 {[%clk 0:01:30.1]} 25. Bxb5
{[%clk 0:02:14.4]} 25... Rxb5 {[%clk 0:01:28]} 26. Rxb5 {[%clk 0:02:15.1]} 26...
Qxd4 {[%clk 0:01:29.5]} 27. R5b4 {[%clk 0:02:12.4]} 27... Qf6 {[%clk 0:01:29.8]}
28. Qxa4 {[%clk 0:02:12.7]} 28... Re7 {[%clk 0:01:29.4]} 29. Kg2 {[%clk
0:02:05.5]} 29... Nc5 {[%clk 0:01:26.5]} 30. Qc2 {[%clk 0:02:06.1]} 30... g5
{[%clk 0:01:25.8]} 31. a4 {[%clk 0:01:57.1]} 31... g4 {[%clk 0:01:26.3]} 32. Qe2
{[%clk 0:01:57.4]} 32... h5 {[%clk 0:01:26.9]} 33. a5 {[%clk 0:01:58.4]} 33...
Qe5 {[%clk 0:01:24.8]} 34. a6 {[%clk 0:01:55.3]} 34... Qxd5 {[%clk 0:01:18.5]}
35. exd5 {[%clk 0:01:53.4]} 35... Rxe2 {[%clk 0:01:19.1]} 36. a7 {[%clk
0:01:54.6]} 36... Ra2 {[%clk 0:01:20.2]} 37. Rb8+ {[%clk 0:01:55]} 37... Kg7
{[%clk 0:01:22.1]} 38. a8=Q {[%clk 0:01:56.1]} 1-0

[Event "*** Titled Tuesday Blitz"]
[Site "Chess.com"]
[Date "2018.07.03"]
[Round "4"]
[White "Durarbayli"]
[Black "NateSolon"]
[Result "1-0"]
[WhiteElo "2660"]
[BlackElo "2393"]
[TimeControl "180+2"]
[EndTime "13:48:34 PDT"]
[Termination "Durarbayli won by resignation"]

1. e4 {[%clk 0:03:01.9]} 1... c5 {[%clk 0:02:59.7]} 2. d4 {[%clk 0:03:02.8]}
2... cxd4 {[%clk 0:03:00.1]} 3. Nf3 {[%clk 0:03:04.1]} 3... d6 {[%clk
0:02:58.4]} 4. Nxd4 {[%clk 0:03:04.6]} 4... Nf6 {[%clk 0:02:59.4]} 5. Nc3 {[%clk
0:03:06.1]} 5... Nc6 {[%clk 0:03:00.6]} 6. Bg5 {[%clk 0:03:07.3]} 6... Bd7
{[%clk 0:03:01.1]} 7. f4 {[%clk 0:03:05.4]} 7... Qb6 {[%clk 0:02:54.3]} 8. Nb3
{[%clk 0:03:06.2]} 8... Ng4 {[%clk 0:02:46.6]} 9. Qd2 {[%clk 0:03:01.8]} 9...
Qe3+ {[%clk 0:02:41]} 10. Qxe3 {[%clk 0:02:57]} 10... Nxe3 {[%clk 0:02:42.9]}
11. Kd2 {[%clk 0:02:44.6]} 11... Nxf1+ {[%clk 0:02:33.8]} 12. Rhxf1 {[%clk
0:02:46.5]} 12... h6 {[%clk 0:02:20.3]} 13. Bh4 {[%clk 0:02:45.6]} 13... g5
{[%clk 0:02:16.9]} 14. Bg3 {[%clk 0:02:46.2]} 14... Bg7 {[%clk 0:02:07.3]} 15.
Rae1 {[%clk 0:02:43.7]} 15... gxf4 {[%clk 0:02:00.2]} 16. Bxf4 {[%clk 0:02:43]}
16... Rc8 {[%clk 0:01:58.3]} 17. Bg3 {[%clk 0:02:37.7]} 17... Ne5 {[%clk
0:01:54.7]} 18. Kc1 {[%clk 0:02:37.7]} 18... Nc4 {[%clk 0:01:52.4]} 19. Rf3
{[%clk 0:02:31.1]} 19... b5 {[%clk 0:01:35]} 20. Nd2 {[%clk 0:02:22.5]} 20...
Nxd2 {[%clk 0:01:09.6]} 21. Kxd2 {[%clk 0:02:24.4]} 21... a5 {[%clk 0:00:42.4]}
22. e5 {[%clk 0:02:22.7]} 22... dxe5 {[%clk 0:00:35.2]} 23. Bxe5 {[%clk
0:02:22.9]} 23... Bxe5 {[%clk 0:00:37.1]} 24. Rxe5 {[%clk 0:02:24.3]} 24... Bc6
{[%clk 0:00:32.7]} 25. Rfe3 {[%clk 0:02:14.3]} 25... e6 {[%clk 0:00:33.7]} 26.
g3 {[%clk 0:02:10.6]} 26... Ke7 {[%clk 0:00:28.5]} 27. Nxb5 {[%clk 0:02:07.9]}
27... Rhd8+ {[%clk 0:00:29.1]} 28. Kc1 {[%clk 0:02:08.3]} 28... Rb8 {[%clk
0:00:21.2]} 29. a4 {[%clk 0:02:08.4]} 29... Rd5 {[%clk 0:00:20]} 30. Rxd5 {[%clk
0:02:08.7]} 30... Bxd5 {[%clk 0:00:21.9]} 31. b3 {[%clk 0:02:09.4]} 31... Bc6
{[%clk 0:00:21.9]} 32. Nd4 {[%clk 0:02:08.7]} 32... Bd7 {[%clk 0:00:23.1]} 33.
Re5 {[%clk 0:02:09.3]} 1-0

[Event "*** Titled Tuesday Blitz"]
[Site "Chess.com"]
[Date "2018.07.03"]
[Round "4"]
[White "murmah2003"]
[Black "The_Unbeatable_One"]
[Result "0-1"]
[WhiteElo "2616"]
[BlackElo "2678"]
[TimeControl "180+2"]
[EndTime "13:48:52 PDT"]
[Termination "The_Unbeatable_One won by resignation"]

1. Nf3 {[%clk 0:02:56.8]} 1... d5 {[%clk 0:02:59.2]} 2. d4 {[%clk 0:02:47]} 2...
Nf6 {[%clk 0:02:59.1]} 3. c4 {[%clk 0:02:47.2]} 3... c6 {[%clk 0:02:59.6]} 4.
Nc3 {[%clk 0:02:45.2]} 4... e6 {[%clk 0:03:00.5]} 5. Bg5 {[%clk 0:02:45.7]} 5...
dxc4 {[%clk 0:02:54.7]} 6. e4 {[%clk 0:02:41.9]} 6... b5 {[%clk 0:02:55.2]} 7.
e5 {[%clk 0:02:43]} 7... h6 {[%clk 0:02:55.8]} 8. Bh4 {[%clk 0:02:44.5]} 8... g5
{[%clk 0:02:57.1]} 9. Nxg5 {[%clk 0:02:46.1]} 9... hxg5 {[%clk 0:02:58.5]} 10.
Bxg5 {[%clk 0:02:48]} 10... Nbd7 {[%clk 0:02:58.1]} 11. g3 {[%clk 0:02:46.1]}
11... Bb7 {[%clk 0:02:59.2]} 12. Bg2 {[%clk 0:02:45.4]} 12... Qb6 {[%clk
0:03:00.1]} 13. exf6 {[%clk 0:02:40.9]} 13... O-O-O {[%clk 0:03:00.4]} 14. O-O
{[%clk 0:02:40]} 14... c5 {[%clk 0:03:01.7]} 15. d5 {[%clk 0:02:29.3]} 15... b4
{[%clk 0:03:02]} 16. Rb1 {[%clk 0:02:15.4]} 16... Qa6 {[%clk 0:03:02]} 17. dxe6
{[%clk 0:01:54]} 17... Bxg2 {[%clk 0:02:59.8]} 18. Kxg2 {[%clk 0:01:48.7]} 18...
Qxe6 {[%clk 0:02:57]} 19. h4 {[%clk 0:01:20.4]} 19... bxc3 {[%clk 0:02:57.5]}
20. bxc3 {[%clk 0:01:17]} 20... Qc6+ {[%clk 0:02:55.2]} 21. f3 {[%clk
0:01:09.4]} 21... Bh6 {[%clk 0:02:54.6]} 22. Qe2 {[%clk 0:01:01.6]} 22... Bxg5
{[%clk 0:02:52.7]} 23. hxg5 {[%clk 0:01:03.5]} 23... Nb6 {[%clk 0:02:47]} 24.
Rfd1 {[%clk 0:00:53.6]} 24... Rde8 {[%clk 0:02:45.2]} 25. Qd2 {[%clk 0:00:47.3]}
25... Qe6 {[%clk 0:02:43.2]} 26. g4 {[%clk 0:00:29.8]} 26... Qe5 {[%clk
0:02:33.2]} 27. Rh1 {[%clk 0:00:28.8]} 27... Rxh1 {[%clk 0:02:21.4]} 28. Rxh1
{[%clk 0:00:30.7]} 28... Nd5 {[%clk 0:02:21.3]} 29. Kf2 {[%clk 0:00:06.1]} 29...
Nf4 {[%clk 0:02:20.6]} 30. Rd1 {[%clk 0:00:02.8]} 30... Nd3+ {[%clk 0:02:20.8]}
31. Kg2 {[%clk 0:00:04.3]} 31... Rh8 {[%clk 0:02:19.6]} 32. Rh1 {[%clk
0:00:05.7]} 32... Nf4+ {[%clk 0:02:17.5]} 33. Kg1 {[%clk 0:00:03.8]} 33... Ne2+
{[%clk 0:02:17.3]} 34. Kf2 {[%clk 0:00:03.4]} 34... Rxh1 {[%clk 0:02:15.5]} 0-1

[Event "*** Titled Tuesday Blitz"]
[Site "Chess.com"]
[Date "2018.07.03"]
[Round "4"]
[White "VladimirBelous"]
[Black "Keures"]
[Result "1-0"]
[WhiteElo "2659"]
[BlackElo "2138"]
[TimeControl "180+2"]
[EndTime "13:48:57 PDT"]
[Termination "VladimirBelous won by resignation"]

1. c4 {[%clk 0:03:01.9]} 1... Nf6 {[%clk 0:02:59.4]} 2. Nc3 {[%clk 0:03:03.8]}
2... e6 {[%clk 0:03:00.5]} 3. e4 {[%clk 0:03:04.7]} 3... d5 {[%clk 0:03:00.6]}
4. e5 {[%clk 0:03:06.1]} 4... Ng8 {[%clk 0:02:57.4]} 5. d4 {[%clk 0:03:03.3]}
5... c6 {[%clk 0:02:50.8]} 6. Nf3 {[%clk 0:03:02.9]} 6... b6 {[%clk 0:02:50.1]}
7. cxd5 {[%clk 0:03:02.1]} 7... cxd5 {[%clk 0:02:45.6]} 8. Bg5 {[%clk
0:03:02.4]} 8... Be7 {[%clk 0:02:46.3]} 9. Be3 {[%clk 0:03:03.7]} 9... Qd7
{[%clk 0:02:35]} 10. Rc1 {[%clk 0:02:47.9]} 10... Ba6 {[%clk 0:02:33.1]} 11.
Bxa6 {[%clk 0:02:38.1]} 11... Nxa6 {[%clk 0:02:35]} 12. a3 {[%clk 0:02:36]}
12... Nc7 {[%clk 0:02:33.2]} 13. Qd3 {[%clk 0:02:36.6]} 13... Bd8 {[%clk
0:02:25.1]} 14. O-O {[%clk 0:02:37.7]} 14... h6 {[%clk 0:02:25.3]} 15. g4 {[%clk
0:02:23.9]} 15... Ne7 {[%clk 0:02:20.7]} 16. Kg2 {[%clk 0:02:25.2]} 16... Ng6
{[%clk 0:02:17.4]} 17. h3 {[%clk 0:02:26]} 17... Nh4+ {[%clk 0:02:16.5]} 18.
Nxh4 {[%clk 0:02:23.8]} 18... Bxh4 {[%clk 0:02:18.4]} 19. f4 {[%clk 0:02:23.4]}
19... g6 {[%clk 0:02:06.6]} 20. f5 {[%clk 0:02:10.2]} 20... gxf5 {[%clk
0:02:06.3]} 21. gxf5 {[%clk 0:02:12.1]} 21... Rg8+ {[%clk 0:01:45.7]} 22. Kh2
{[%clk 0:02:12.7]} 22... Bg5 {[%clk 0:01:46.2]} 23. f6 {[%clk 0:02:11.3]} 23...
O-O-O {[%clk 0:01:33.1]} 24. Nb5 {[%clk 0:02:09.3]} 24... Bxe3 {[%clk
0:01:13.4]} 25. Rxc7+ {[%clk 0:02:06.4]} 25... Qxc7 {[%clk 0:01:13.1]} 26. Nxc7
{[%clk 0:02:08.3]} 26... Kxc7 {[%clk 0:01:14.2]} 27. Qxe3 {[%clk 0:02:08.7]}
27... Rg6 {[%clk 0:01:11.4]} 28. Rc1+ {[%clk 0:02:10.6]} 28... Kb7 {[%clk
0:01:12]} 29. Qc3 {[%clk 0:02:12.5]} 29... Rdg8 {[%clk 0:01:09]} 30. Qc6+ {[%clk
0:02:12.2]} 30... Ka6 {[%clk 0:01:07.1]} 31. Rc2 {[%clk 0:02:13.8]} 31... Rg1
{[%clk 0:00:48.9]} 32. Qa4+ {[%clk 0:02:13.4]} 32... Kb7 {[%clk 0:00:49.3]} 33.
Qd7+ {[%clk 0:02:14.3]} 33... Ka6 {[%clk 0:00:50.3]} 34. Qxf7 {[%clk 0:02:15.9]}
34... R8g5 {[%clk 0:00:46.2]} 35. Qxe6 {[%clk 0:02:15.5]} 35... Rd1 {[%clk
0:00:44]} 36. Qc8+ {[%clk 0:02:17.4]} 36... Ka5 {[%clk 0:00:44.7]} 37. Qc3+
{[%clk 0:02:19.2]} 37... Ka6 {[%clk 0:00:45.3]} 38. Qc8+ {[%clk 0:02:12.1]}
38... Ka5 {[%clk 0:00:46.2]} 39. b4+ {[%clk 0:02:13.3]} 39... Ka4 {[%clk
0:00:47.4]} 40. Qc6+ {[%clk 0:02:12.4]} 40... Kb3 {[%clk 0:00:44]} 41. Qc3+
{[%clk 0:02:13.6]} 41... Ka4 {[%clk 0:00:45.2]} 42. Rg2 {[%clk 0:02:15.3]} 42...
Rf5 {[%clk 0:00:41.8]} 43. Qc2+ {[%clk 0:02:15.9]} 1-0

[Event "*** Titled Tuesday Blitz"]
[Site "Chess.com"]
[Date "2018.07.03"]
[Round "4"]
[White "Gr3egor"]
[Black "Hrant_ChessMood"]
[Result "0-1"]
[WhiteElo "2367"]
[BlackElo "2899"]
[TimeControl "180+2"]
[EndTime "13:49:04 PDT"]
[Termination "Hrant_ChessMood won by resignation"]

1. d4 {[%clk 0:03:01.9]} 1... Nf6 {[%clk 0:02:59.3]} 2. c4 {[%clk 0:03:03.1]}
2... g6 {[%clk 0:03:00.3]} 3. Nc3 {[%clk 0:03:04.3]} 3... Bg7 {[%clk 0:03:01.3]}
4. e4 {[%clk 0:03:05.1]} 4... d6 {[%clk 0:03:01.5]} 5. f3 {[%clk 0:03:06.4]}
5... O-O {[%clk 0:03:01.9]} 6. Nge2 {[%clk 0:03:07.6]} 6... Nc6 {[%clk
0:03:02.6]} 7. Be3 {[%clk 0:03:08.6]} 7... a6 {[%clk 0:03:03.2]} 8. Qd2 {[%clk
0:03:07.7]} 8... Rb8 {[%clk 0:03:02.2]} 9. Ng3 {[%clk 0:03:09]} 9... e5 {[%clk
0:03:00.5]} 10. d5 {[%clk 0:03:05.7]} 10... Nd4 {[%clk 0:03:01.3]} 11. Nce2
{[%clk 0:03:05.9]} 11... c5 {[%clk 0:02:59.4]} 12. dxc6 {[%clk 0:03:04]} 12...
Nxc6 {[%clk 0:02:58.1]} 13. Rd1 {[%clk 0:03:00.9]} 13... Be6 {[%clk 0:02:58.8]}
14. b3 {[%clk 0:03:01.4]} 14... Ne8 {[%clk 0:02:46.8]} 15. h4 {[%clk 0:03:01.1]}
15... h5 {[%clk 0:02:44.9]} 16. f4 {[%clk 0:02:57.6]} 16... exf4 {[%clk
0:02:42.9]} 17. Nxf4 {[%clk 0:02:56.3]} 17... Bg4 {[%clk 0:02:43.7]} 18. Be2
{[%clk 0:02:57]} 18... Ne5 {[%clk 0:02:44.6]} 19. c5 {[%clk 0:02:30.8]} 19...
Bxe2 {[%clk 0:02:41.6]} 20. Nfxe2 {[%clk 0:02:30.8]} 20... Ng4 {[%clk
0:02:35.9]} 21. Bg5 {[%clk 0:02:30.7]} 21... Qd7 {[%clk 0:02:17.4]} 22. cxd6
{[%clk 0:02:26.6]} 22... Be5 {[%clk 0:02:18.3]} 23. Bf4 {[%clk 0:02:21.7]} 23...
Rd8 {[%clk 0:02:10]} 24. O-O {[%clk 0:01:42.9]} 24... Bxd6 {[%clk 0:01:55.6]}
25. Bxd6 {[%clk 0:01:28.2]} 25... Qxd6 {[%clk 0:01:57.5]} 26. Qxd6 {[%clk
0:01:28.5]} 26... Nxd6 {[%clk 0:01:56.2]} 27. Rd3 {[%clk 0:01:27.7]} 27... Nb5
{[%clk 0:01:51]} 28. Rfd1 {[%clk 0:01:28.3]} 28... Rxd3 {[%clk 0:01:43]} 29.
Rxd3 {[%clk 0:01:30.2]} 29... Rc8 {[%clk 0:01:43.7]} 30. a4 {[%clk 0:01:31.7]}
30... Na3 {[%clk 0:01:35.1]} 31. Nf1 {[%clk 0:01:26.9]} 31... Rc2 {[%clk
0:01:31.6]} 32. Nd4 {[%clk 0:01:11.2]} 32... Rc1 {[%clk 0:01:31.7]} 33. e5
{[%clk 0:00:55.5]} 33... Nc2 {[%clk 0:01:29.5]} 34. Rc3 {[%clk 0:00:47.1]} 34...
Nxd4 {[%clk 0:01:29.1]} 0-1